Cogmind - Beta 15 @@@ ROGUE MODE // 2025.05.14 @ 02:11:43 Player: CatPlusPlus Result: Self-destructed Performance ------------- Evolutions (6) 3000 Regions Visited (20) 4000 Robots Destroyed (278) 1390 Value Destroyed (7754) 7754 Prototype IDs (41) 820 Alien Tech Used (0) 0 Bonus (3959) 3959 TOTAL SCORE: 20923 Bonus ------- High Alert Combat Kills 81 Follower Combat Kills 1461 Network Hubs Disabled 400 Registered with UFD 300 Met Optimus in HQ 500 Met Data Miner 300 Built Enhanced Grunts 300 A7 Reached Mainframe 300 Met R17 at Cetus 500 Friendly Fire -183 Cogmind --------- Core Integrity 685/1150 Matter 300/300 Energy 45/100 System Corruption 5% Temperature Cool (0) Movement Walking (120) Location -4/Upper Caves Parts ------- > --- POWER (2) -------- (None) > --- PROPULSION (6) --- Flexi-carbon Leg Myomer Leg > --- UTILITY (9) ------ Experimental Heat Sink Large Storage Unit Advanced Signal Interpreter Melee Analysis Suite Core Analyzer Advanced Transmission Jammer Advanced Hacking Suite > --- WEAPON (2) ------- Companion Sword > --- INVENTORY (15) --- Light Nuclear Core Particle Reactor Medium Treads Deep Structural Scanner Experimental Terrain Scanner Surveybot 17 Chip Centrium Medium Armor Plating Graphene Brace Long-range Proton Cannon Compact Ion Cannon Heavy Missile Launcher Advanced Datajack Improved Plasma Cutter Peak State ------------ > --- POWER ------------ Angular Momentum Engine Neutrino Core > --- PROPULSION ------- Medium Treads Centrium Heavy Treads Thunder Leg Enhanced Flexi-carbon Leg Enhanced Biometal Leg > --- UTILITY ---------- Large Storage Unit Seismic Detector Melee Analysis Suite Advanced Transmission Jammer Centrium Medium Armor Plating Advanced Shield Generator Advanced Hacking Suite Quantum Router A0-MCA's Component Scanner > --- WEAPON ----------- Compact Ion Cannon Companion Sword > --- INVENTORY -------- Particle Reactor Experimental Heat Sink Deep Structural Scanner Advanced Signal Interpreter Experimental Terrain Scanner Surveybot 17 Chip Quantum Capacitor Centrium Medium Armor Plating Centrium Medium Armor Plating Graphene Brace Long-range Proton Cannon Heavy Missile Launcher Advanced Datajack Improved Plasma Cutter [Rating: 129] Favorites ----------- Power Cooled Ion Engine Engine Cooled Ion Engine Power Core Light Nuclear Core Reactor Quantum Reactor Propulsion Armored Treads Treads Armored Treads Leg Carbon-fiber Leg Wheel Armored Huge Wheel Hover Unit Improved Hover Unit Flight Unit Improved VTOL Module Utility Huge Storage Unit Device Cooling System Storage Huge Storage Unit Processor Melee Analysis Suite Hackware Advanced Hacking Suite Protection Light Armor Plating Weapon Assault Cannon Energy Gun Medium Laser Energy Cannon Advanced Beam Cannon Ballistic Gun Enhanced Autogun Ballistic Cannon Assault Cannon Launcher Grenade Launcher Special Weapon Mining Laser Impact Weapon Heavy Mace Slashing Weapon Companion Sword Special Melee Weapon Improved Datajack Build | -11 -10 -10 -9 -9 -8 -8 -8 -8 -6 -6 -6 -6 -5 -5 -5 -5 -5 -5 -4 -4 ------- Run | Yrd Mat Min Mat Min Mat Sto Rec Scr Fac Low Low Dat Pro Fac Ext Cet Arc Hub Fac Upp Slots Evolved 12 | . . . 2 . 2 . . . 4 . . . . 2 . . . . 2 . Power 1 | . . . . . . . . . . . . . . 1 . . . . . . Propulsion 4 | . . . 1 . 1 . . . 2 . . . . . . . . . . . Utility 7 | . . . 1 . 1 . . . 2 . . . . 1 . . . . 2 . Weapon . | . . . . . . . . . . . . . . . . . . . . . Parts Attached 167 | 7 14 1 26 2 14 15 2 4 10 2 . . 1 9 27 8 1 5 16 3 Power 26 | 1 3 . 4 . . 1 . 1 . . . . 1 4 4 3 . . 4 . Engine 10 | 1 3 . 4 . . 1 . . . . . . . . . 1 . . . . Core 12 | . . . . . . . . 1 . . . . 1 4 4 . . . 2 . Reactor 4 | . . . . . . . . . . . . . . . . 2 . . 2 . Propulsion 53 | 2 3 . 10 . 5 3 . . 5 . . . . 1 14 1 . 3 3 3 Treads 19 | 2 3 . 9 . 3 . . . . . . . . . . 1 . . 1 . Leg 20 | . . . . . . . . . . . . . . . 13 . . 3 1 3 Wheel 5 | . . . . . 2 2 . . . . . . . . . . . . 1 . Hover 1 | . . . . . . . . . . . . . . . 1 . . . . . Flight 8 | . . . 1 . . 1 . . 5 . . . . 1 . . . . . . Utility 57 | 2 4 . 4 . 9 2 1 1 5 2 . . . 4 8 3 1 2 9 . Device 21 | 1 2 . 1 . 2 . . . 2 2 . . . . 3 . 1 2 5 . Storage 6 | 1 1 . 1 . 1 . . . 1 . . . . . 1 . . . . . Processor 9 | . . . . . 1 1 . . 1 . . . . 1 2 . . . 3 . Hackware 3 | . . . . . . . . . 1 . . . . 2 . . . . . . Protection 18 | . 1 . 2 . 5 1 1 1 . . . . . 1 2 3 . . 1 . Artifact . | . . . . . . . . . . . . . . . . . . . . . Weapon 31 | 2 4 1 8 2 . 9 1 2 . . . . . . 1 1 . . . . Energy Gun 3 | 1 . . 2 . . . . . . . . . . . . . . . . . Energy Cannon 4 | . . . 2 . . 1 . . . . . . . . 1 . . . . . Ballistic Gun 7 | 1 . . 1 . . 5 . . . . . . . . . . . . . . Ballistic Cannon 7 | . 2 . 3 2 . . . . . . . . . . . . . . . . Launcher 5 | . 1 1 . . . 3 . . . . . . . . . . . . . . Special Weapon 2 | . 1 . . . . . . . . . . . . . . 1 . . . . Impact Weapon 1 | . . . . . . . 1 . . . . . . . . . . . . . Slashing Weapon 1 | . . . . . . . . 1 . . . . . . . . . . . . Piercing Weapon . | . . . . . . . . . . . . . . . . . . . . . Special Melee Weapon 1 | . . . . . . . . 1 . . . . . . . . . . . . Unidentified Prototypes 16 | . . . 5 . . 4 . 1 . . . . . 1 . 2 . 3 . . Corrupted Parts 3 | . . . . . . . . . . . . . . . . 1 . 2 . . System Corruption 19 | . . . . . . . . . . . . . . . . 2 . 17 . . Parts Lost 37 | . . . 1 . 1 1 . . . . . . 1 2 5 3 . 5 6 12 Power 9 | . . . . . . . . . . . . . 1 . 1 2 . . 2 3 Propulsion 14 | . . . . . . . . . . . . . . . 4 . . 3 1 6 Utility 13 | . . . 1 . 1 1 . . . . . . . 1 . 1 . 2 3 3 Weapon 1 | . . . . . . . . . . . . . . 1 . . . . . . Highest Loss Streak 6 | . . . 1 . 1 1 . . . . . . 1 2 2 3 . 3 2 6 To Critical Strikes 1 | . . . . . . . . . . . . . . . . . . . 1 . Average Backups 20 | 2 21 25 24 25 23 22 23 24 10 10 10 9 10 9 10 14 14 14 13 13 Power 1 | . 1 2 2 2 2 1 1 1 . . . . . . . 1 . 1 1 1 Propulsion 3 | . 4 6 4 4 3 3 5 6 . . . . . . . 1 . 1 . 1 Utility 8 | . 8 9 8 9 8 7 7 11 6 6 7 6 7 6 7 9 9 8 7 5 Weapon 6 | . 6 8 8 10 9 8 9 5 2 2 1 2 1 2 2 2 3 3 2 2 Tool/Special . | . . . . . . . . . . . . . . . . . . . . . Unused Backups 77 | . 8 . 21 1 20 5 1 3 3 1 1 . . 1 1 2 2 . 1 6 Power 12 | . . . 6 . 3 . . . . . . . . . . 1 . . . 2 Propulsion 9 | . 2 . 1 . 6 . . . . . . . . . . . . . . . Utility 33 | . 5 . 5 1 8 1 . 1 3 . . . . 1 1 1 2 . 1 3 Weapon 19 | . 1 . 9 . 3 4 . 2 . . . . . . . . . . . . Tool/Special 4 | . . . . . . . 1 . . 1 1 . . . . . . . . 1 Average Slot Usage (%) 92 | . 99 100 99 100 95 74 72 72 97 100 100 100 99 95 90 88 87 86 87 81 Engine 8 | . 14 14 11 11 9 9 9 8 . . . . . . . 1 5 5 1 . Core 1 | . . . . . . . . . 5 6 6 6 6 8 8 4 . . 4 4 Treads 16 | . 27 28 32 33 27 . . . . . . . . . . 4 5 5 4 . Leg 4 | . . . . . . . . . . . . . . . 20 25 23 21 16 15 Wheel 3 | . . . . . 4 18 18 18 . . . . . . . . . . 3 4 Flight 3 | . . . . . . . . . 38 40 40 40 40 34 10 . . . . . Device 7 | . 8 . 11 11 9 2 . . 12 13 13 13 13 11 10 3 4 7 13 13 Storage 9 | . 14 14 11 11 9 9 9 9 6 6 6 6 6 5 5 5 5 5 5 5 Processor 4 | . . . . . 8 9 9 9 6 6 6 6 6 2 . 11 11 7 12 15 Hackware 3 | . . . . . . . . . 5 6 6 6 6 14 16 11 11 11 6 5 Protection 8 | . 5 14 10 11 8 9 9 11 6 6 6 6 6 4 5 6 5 5 5 4 Energy Gun 1 | . 7 . . . . . . . . . . . . . . . . . . . Ballistic Gun 2 | . 7 . . . . 14 9 5 . . . . . . . . . . . . Ballistic Cannon 9 | . 12 27 16 21 17 2 . . . . . . . . . . . . . . Slashing Weapon 1 | . . . . . . . . 3 6 6 6 6 6 5 5 5 5 5 5 5 Peak Build Rating 129 | 7 12 10 27 27 40 46 58 48 59 61 60 62 63 81 86 106 106 117 129 111 Average Rating 45 | 5 10 10 21 26 34 42 44 44 57 58 58 60 60 73 77 97 97 105 111 100 On Entrance 54 | . 7 10 10 25 27 40 45 44 48 59 60 58 62 62 81 84 106 97 100 114 Naked Turns . | . . . . . . . . . . . . . . . . . . . . . Heaviest Build 113 | 13 94 94 103 103 108 113 109 109 31 31 25 26 28 30 67 71 71 69 77 57 Greatest Support 108 | 40 40 40 60 60 80 56 56 56 39 25 25 30 30 33 100 100 75 101 104 108 Greatest Overweight (x) 21 | . 4 2 2 1 1 2 1 1 1 1 . . . . 3 . 21 1 2 1 Average Overweight (x) . | . 1 2 1 1 . 1 1 1 . . . . . . . . 9 . . . Largest Inventory Capacity 25 | 8 25 25 25 25 25 25 25 25 25 10 10 10 10 10 15 15 15 15 15 15 Average Capacity 21 | 7 24 25 25 25 24 25 25 25 10 10 10 10 10 10 10 15 15 15 15 15 Most Carried 25 | 6 25 25 25 25 25 25 25 25 25 10 10 10 10 10 15 15 15 15 15 14 Average Carried 20 | 2 21 25 24 25 24 24 23 24 10 9 10 9 9 9 10 14 14 14 14 13 Final Capacity 25 | 8 25 25 25 25 25 25 25 25 10 10 10 10 10 10 15 15 15 15 15 15 Final Carried 25 | 5 25 25 25 25 25 25 24 25 10 10 10 10 10 10 15 15 15 15 13 13 Class Distribution -------------------- 68% | Mutant 18% | Scavenger-Mutant 3% | Sprinter 3% | Hacker-Sprinter Dominant Class ---------------- Mutant | -10/Materials Mutant | -10/Mines Mutant | -9/Materials Mutant | -9/Mines Mutant | -8/Materials Mutant | -8/Storage Mutant | -8/Recycling Mutant | -8/Scraptown Sprinter | -6/Factory Sprinter | -6/Lower Caves Sprinter | -6/Lower Caves Sprinter | -6/Data Miner Scavenger-Sprinter | -5/Proximity Caves Hacker-Sprinter | -5/Factory Hacker-Mutant | -5/Extension Scavenger-Mutant | -5/Cetus Scavenger-Mutant | -5/Archives Scavenger-Mutant | -5/Hub_04(d) Scavenger-Mutant | -4/Factory Scavenger-Mutant | -4/Upper Caves Resources | -11 -10 -10 -9 -9 -8 -8 -8 -8 -6 -6 -6 -6 -5 -5 -5 -5 -5 -5 -4 -4 ----------- Run | Yrd Mat Min Mat Min Mat Sto Rec Scr Fac Low Low Dat Pro Fac Ext Cet Arc Hub Fac Upp Matter Collected 6135 | 245 743 135 1059 520 1049 666 28 60 140 50 50 . 227 182 330 89 46 83 300 133 Remotely . | . . . . . . . . . . . . . . . . . . . . . Salvage Created 9585 | 130 955 127 1400 427 1298 1095 56 . 113 . . 25 72 375 1449 138 369 163 986 407 Parts 536 | 10 57 10 111 38 68 51 2 . 6 . . 1 12 17 45 4 21 14 53 16 Haulers Intercepted 21 | . 2 . 6 . 5 6 . . . . . . . . 2 . . . . . Recyclers Shooed 7 | . 2 . 1 . 4 . . . . . . . . . . . . . . . Parts Field Recycled . | . . . . . . . . . . . . . . . . . . . . . Retrieved Matter . | . . . . . . . . . . . . . . . . . . . . . Parts Self-Destructed 23 | . . . . . . . . . . . . . 9 . . . . . . 14 Prevented . | . . . . . . . . . . . . . . . . . . . . . Kills | -11 -10 -10 -9 -9 -8 -8 -8 -8 -6 -6 -6 -6 -5 -5 -5 -5 -5 -5 -4 -4 ------- Run | Yrd Mat Min Mat Min Mat Sto Rec Scr Fac Low Low Dat Pro Fac Ext Cet Arc Hub Fac Upp Combat Hostiles Destroyed 179 | . 14 7 29 21 27 15 . . . . . . 10 9 14 2 1 2 17 11 Melee 49 | . . . . . . . . . . . . . 2 9 14 2 1 2 12 7 Guns 17 | . 8 . . . . 9 . . . . . . . . . . . . . . Cannons 57 | . 3 4 27 3 20 . . . . . . . . . . . . . . . AOE 56 | . 3 3 2 18 7 6 . . . . . . 8 . . . . . 5 4 Classes Destroyed 17 | 2 6 . 3 . 1 . . . . . . . 1 . 1 . . 2 1 . Worker 13 | . 4 . 3 . 1 4 . . . . . . . . . . . . 1 . Builder 8 | . 1 . 2 1 2 . . . . . . . . . . . . . 2 . Tunneler 5 | 3 1 . . . 1 . . . . . . . . . . . . . . . Hauler 21 | . 2 . 6 . 5 6 . . . . . . . . 2 . . . . . Recycler 26 | 1 3 . 3 4 5 3 1 . 1 . . . . 1 2 . . . 2 . Operator 11 | . . . 1 . . . . . . . . . . . 1 . 9 . . . Drone 2 | . . . . . . . . . . . . . 2 . . . . . . . Watcher 14 | . 3 . 5 . 5 1 . . . . . . . . . . . . . . Swarmer 73 | . 3 3 6 19 7 3 . . . . . . 8 9 . . . . 8 7 Grunt 66 | . 11 4 13 2 15 9 . . . . . . . . 8 . . . . 4 Brawler 1 | . . . . . . . . . . . . . . . 1 . . . . . Duelist 2 | . . . 1 . 1 . . . . . . . . . . . . . . . Sentry 22 | . . . 9 . 3 3 . . . . . . . . 4 . 1 . 2 . Specialist 1 | . . . . . . . . . . . . . . . . . . 1 . . Hunter 4 | . . . . . 1 . . . . . . . . . 1 . . . 2 . Programmer 5 | . . . . . . . . . . . . . . . . . . . 5 . Heavy 1 | . . . . . . . . . . . . . . . . . . 1 . . Cetus Guard 2 | . . . . . . . . . . . . . . . . 2 . . . . Best Kill Streak 12 | 4 4 3 7 6 6 12 1 . 1 . . 1 5 5 3 2 3 2 6 4 Combat Bots Only 9 | . 3 3 3 4 5 9 . . . . . . 5 5 3 2 1 2 4 4 Max Kills in Single Turn 4 | 1 3 2 2 4 3 4 1 . 1 . . 1 3 2 1 1 1 1 4 2 Gunslinging . | . . . . . . . . . . . . . . . . . . . . . Exploded 3 | . 2 2 1 3 3 3 . . . . . . 3 . . . . . 2 2 Melee 2 | . . . . . . . . . . . . . 1 2 1 1 1 1 1 1 Uniques/NPCs Destroyed 1 | . . . . . . . . . . . . 1 . . . . . . . . Data Miner (-6/Data Miner) Combat | -11 -10 -10 -9 -9 -8 -8 -8 -8 -6 -6 -6 -6 -5 -5 -5 -5 -5 -5 -4 -4 -------- Run | Yrd Mat Min Mat Min Mat Sto Rec Scr Fac Low Low Dat Pro Fac Ext Cet Arc Hub Fac Upp Hostile Shots Fired 908 | . 64 20 87 27 94 77 . . . . . 6 17 33 80 48 28 41 155 131 Missed 276 | . 27 5 19 8 25 14 . . . . . 3 7 14 22 15 10 13 52 42 Hits 632 | . 37 15 68 19 69 63 . . . . . 3 10 19 58 33 18 28 103 89 Projectile 632 | . 37 15 68 19 69 63 . . . . . 3 10 19 58 33 18 28 103 89 AOE 1 | . . . . . . . . . . . . . . . . . . . 1 . Critical Strikes 37 | . 1 . 2 . 5 1 . . . . . . . . 5 2 . 2 8 11 Part Disruptions 2 | . . . . . . . . . . . . . . . 1 . . 1 . . Damage Taken 11418 | . 475 199 802 239 960 935 . . 9 . . 145 168 315 1201 979 490 952 1803 1746 Core 1578 | . 106 64 76 22 61 121 . . 9 . . 6 13 111 210 83 90 141 187 278 Absorbed by Shields 776 | . . . . . 53 168 . . . . . . . . 211 101 . . 243 . Regen/Repaired (Parts) 267 | . 74 . 88 . . 105 . . . . . . . . . . . . . . Core Remaining (%) 67 | 100 . 32 . 75 . . . 66 . . . . 96 . . . . 36 . . Volleys Fired 395 | 9 66 12 99 22 83 56 2 . . . . . 35 . . . . . 7 4 Largest 2 | 2 2 2 2 2 2 2 1 . . . . . 1 . . . . . 1 1 Hottest 101 | 70 100 60 101 74 74 74 25 . . . . . 90 . . . . . 90 39 Shots Fired 698 | 18 122 22 196 31 159 102 2 . . . . . 35 . . . . . 7 4 Gun 209 | 18 96 . . . . 93 2 . . . . . . . . . . . . . Cannon 440 | . 20 20 194 18 154 2 . . . . . . 29 . . . . . 3 . Launcher 45 | . 2 2 2 13 5 7 . . . . . . 6 . . . . . 4 4 Special 4 | . 4 . . . . . . . . . . . . . . . . . . . Kinetic 496 | 9 67 20 131 18 154 95 2 . . . . . . . . . . . . . Thermal 157 | 9 53 . 63 . . . . . . . . . 29 . . . . . 3 . Explosive 44 | . 2 2 2 13 5 6 . . . . . . 6 . . . . . 4 4 Electromagnetic 1 | . . . . . . 1 . . . . . . . . . . . . . . Robot Hit Streak 19 | 3 13 4 19 9 16 14 9 . . . . . . . . . . . 1 . Robot Miss Streak 4 | 3 3 2 4 3 2 3 . . . . . . . . . . . . 1 3 Penetration Max . | . . . . . . . . . . . . . . . . . . . . . Secondary Targets 1 | . 1 . . . . . . . . . . . . . . . . . . . Max Gunslinging Chain 1 | . 1 . . . . . . . . . . . . . . . . . . . Shots Hit Robots 626 | 9 76 11 124 13 113 68 2 . 8 . . 1 2 14 57 17 13 12 49 37 Core Hits 357 | 5 44 10 52 28 61 46 1 . 2 . . 1 10 10 29 4 7 5 25 17 Critical Kills 1 | . . . 1 . . . . . . . . . . . . . . . . . Critical Parts Destroyed 1 | . . . . . . 1 . . . . . . . . . . . . . . Critical Strikes 23 | . 2 1 4 1 4 3 . . . . . . . . 4 2 . . 2 . Burn 2 | . 2 . . . . . . . . . . . . . . . . . . . Meltdown 1 | . . . 1 . . . . . . . . . . . . . . . . . Destroy 2 | . . . . . . 2 . . . . . . . . . . . . . . Blast 10 | . . 1 3 1 4 1 . . . . . . . . . . . . . . Melee Attacks 390 | . . . . . . . 5 . 22 1 3 10 19 62 75 18 13 17 86 59 Impact 5 | . . . . . . . 5 . . . . . . . . . . . . . Slashing 377 | . . . . . . . . . 20 1 3 10 13 62 75 18 13 17 86 59 Piercing . | . . . . . . . . . . . . . . . . . . . . . Sneak Attacks 34 | . . . . . . . . . 3 . . 1 . 1 6 . 11 3 7 2 Combat Hostiles 4 | . . . . . . . . . . . . . . . 1 . . 2 1 . Follow-up Attacks 5 | . . . . . . . . . . . . . . 1 1 2 . 1 . . Damage Inflicted 23081 | 122 1231 411 3013 1143 3219 2090 34 . 345 . . 105 804 685 2627 730 1189 528 2829 1976 Guns 2156 | 122 839 . . . . 1161 34 . . . . . . . . . . . . . Cannons 6120 | . 173 200 2764 292 2664 27 . . . . . . . . . . . . . . Explosions 4355 | . 175 205 119 803 514 902 . . . . . . 674 . . . . . 564 399 Melee 10156 | . . . . . . . . . 345 . . 105 130 685 2627 730 1189 528 2240 1577 Ramming 294 | . 44 6 130 48 41 . . . . . . . . . . . . . 25 . Kinetic 6867 | 61 541 200 1887 292 2664 1188 34 . . . . . . . . . . . . . Thermal 1599 | 61 471 47 877 . . 49 . . . . . . . . . . . . 94 . Explosive 4165 | . 175 158 119 803 514 853 . . . . . . 674 . . . . . 470 399 Electromagnetic . | . . . . . . . . . . . . . . . . . . . . . Impact . | . . . . . . . . . . . . . . . . . . . . . Slashing 10156 | . . . . . . . . . 345 . . 105 130 685 2627 730 1189 528 2240 1577 Piercing . | . . . . . . . . . . . . . . . . . . . . . Highest Corruption 22 | . . . . . . . . . . . . . . . . 2 2 22 5 5 Average Corruption 4 | . . . . . . . . . . . . . . . . 2 1 15 1 5 Corruption Purged 2 | . . . . . . . . . . . . . . . . . 2 . . . Corruption Blocked . | . . . . . . . . . . . . . . . . . . . . . Effects 35 | . . . . . . . . . . . . . . . . 1 1 10 3 20 Message Errors 4 | . . . . . . . . . . . . . . . . . . 2 . 2 Matter Fused 11 | . . . . . . . . . . . . . . . . 1 1 2 3 4 Heat Flow Errors 6 | . . . . . . . . . . . . . . . . . . 1 . 5 Energy Discharges 6 | . . . . . . . . . . . . . . . . . . 1 . 5 Parts Rejected 1 | . . . . . . . . . . . . . . . . . . 1 . . Data Loss (minor) 1 | . . . . . . . . . . . . . . . . . . . . 1 Data Loss (major) 3 | . . . . . . . . . . . . . . . . . . 1 . 2 Alerts 2 | . . . . . . . . . . . . . . . . . . 1 . 1 Misdirections 1 | . . . . . . . . . . . . . . . . . . 1 . . Overload Shots . | . . . . . . . . . . . . . . . . . . . . . Overflow Damage 1129 | . . 5 33 37 26 3 . . 92 . . . 39 44 185 33 214 22 186 210 Projectiles 62 | . . . 29 10 23 . . . . . . . . . . . . . . . Explosions 115 | . . 5 . 27 . 3 . . . . . . . . . . . . 28 52 Melee 952 | . . . 4 . 3 . . . 92 . . . 39 44 185 33 214 22 158 158 Knockbacks 52 | . 3 2 14 4 28 . . . . . . . . . . . . . 1 . Impact 1 | . . . . . . . . . . . . . . . . . . . 1 . Kinetic 45 | . 3 2 14 4 22 . . . . . . . . . . . . . . . Secondary 6 | . . . . . 6 . . . . . . . . . . . . . . . Self-Inflicted Damage 318 | . . . . 58 31 189 . . . . . . . . . . . . . 40 Shots 11 | . . . . 4 1 5 . . . . . . . . . . . . . 1 Rammed 30 | . 8 1 14 2 5 . . . . . . . . . . . . . . . Targets Rammed 38 | . 11 1 15 5 5 . . . . . . . . . . . . . 1 . Kicked 1 | . . . . . . . . . . . . . . . . . . . 1 . Crushed 7 | . 3 . 1 3 . . . . . . . . . . . . . . . . Highest Temperature 414 | 36 213 90 414 . 30 135 3 . . 2 2 2 138 61 14 . . 272 88 257 Average Temperature 44 | 15 68 36 156 . 9 39 3 . . 2 2 2 23 22 14 . . 137 36 96 Received Heat Transfer 2554 | . 267 90 357 42 402 345 . . . . . . 9 9 298 148 54 27 66 440 Effects 1 | . . . 1 . . . . . . . . . . . . . . . . . Short Circuit 1 | . . . 1 . . . . . . . . . . . . . . . . . Siege Activations . | . . . . . . . . . . . . . . . . . . . . . Martial Activations . | . . . . . . . . . . . . . . . . . . . . . Shielding Activations . | . . . . . . . . . . . . . . . . . . . . . Robots Disrupted 2 | . . . . . . . . . . . . . . . 1 . . . 1 . Combat Hostiles 2 | . . . . . . . . . . . . . . . 1 . . . 1 . Robots Corrupted 2 | . . . 1 . 1 . . . . . . . . . . . . . . . Combat Hostiles . | . . . . . . . . . . . . . . . . . . . . . Parts Fried 2 | . . . . . 1 . . . . . . . . . . 1 . . . . Impact Corruptions 3 | . . . 2 . 1 . . . . . . . . . . . . . . . Robots Melted 1 | . . . 1 . . . . . . . . . . . . . . . . . Combat Hostiles . | . . . . . . . . . . . . . . . . . . . . . Parts Melted 5 | 1 . . 3 . . . . . . . . . . . 1 . . . . . Heat Transferred 3443 | 185 1517 50 1591 . . 50 . . . . . . . . . . . . 50 . Parts Sabotaged . | . . . . . . . . . . . . . . . . . . . . . Parts Stolen . | . . . . . . . . . . . . . . . . . . . . . Parts Stripped . | . . . . . . . . . . . . . . . . . . . . . Power Chain Reactions 1 | . . . . . . 1 . . . . . . . . . . . . . . Alert | -11 -10 -10 -9 -9 -8 -8 -8 -8 -6 -6 -6 -6 -5 -5 -5 -5 -5 -5 -4 -4 ------- Run | Yrd Mat Min Mat Min Mat Sto Rec Scr Fac Low Low Dat Pro Fac Ext Cet Arc Hub Fac Upp Maximum Alert Level 2 | . . . 1 1 1 1 . . . . . . . 1 2 2 1 1 2 . Low Security (%) 72 | 100 100 100 76 44 53 78 100 . 100 . . . . 3 34 . 79 70 65 . Level 1 24 | . . . 23 55 46 21 . . . . . . . 96 27 98 20 29 23 . Level 2 2 | . . . . . . . . . . . . . . . 37 1 . . 10 . Level 3 . | . . . . . . . . . . . . . . . . . . . . . Level 4 . | . . . . . . . . . . . . . . . . . . . . . Level 5 . | . . . . . . . . . . . . . . . . . . . . . High Security . | . . . . . . . . . . . . . . . . . . . . . Max Security . | . . . . . . . . . . . . . . . . . . . . . Peak Influence 499 | 10 138 128 262 357 328 253 115 . 45 . . . . 364 499 409 320 243 444 . Initial 272 | . . 10 . 96 63 76 65 . . . . . . 231 100 272 139 . 75 . Average 127 | 1 29 25 119 216 202 121 57 . 10 . . . . 261 286 324 82 175 175 . Influence Increases 8546 | 20 522 223 957 634 918 570 222 . 87 . . 20 355 510 1304 357 281 515 811 240 Destroy 0b10 Robot/C 4160 | . 280 140 580 420 540 300 . . . . . 20 160 180 600 160 80 140 340 220 Destroy 0b10 Robot/NC 530 | 20 70 . 100 25 95 70 5 . 5 . . . 10 5 40 10 45 5 25 . Destroy Leader 780 | . 70 30 182 60 130 74 . . . . . . 20 20 74 . . 30 70 20 Allied During Kill 776 | . . . . . . . . . . . . . . . 391 150 125 110 . . Successful Hack 310 | . 38 . 21 . 16 25 37 . 24 . . . . 22 24 . . 61 42 . Select Force Hacks 290 | . 30 . . . 30 . 180 . . . . . . . . . . 50 . . Disable Machine 345 | . 15 15 . 60 . 30 . . . . . . . 15 . 15 15 75 105 . Destroy Structure 605 | . 19 23 29 69 47 71 . . 13 . . . . 88 10 22 16 14 184 . Advance Influence 150 | . . . . . . . . . . . . . . 150 . . . . . . Partial Spotted 45 | . . . . . 15 . . . . . . . . 15 15 . . . . . Lose Combat Pursuer 555 | . . 15 45 . 45 . . . 45 . . . 165 15 150 . . 30 45 . Influence Decreases 8427 | 20 493 252 710 719 899 583 390 . 66 21 . 10 234 436 1022 495 630 360 538 549 Entered New Map 1315 | . . 19 . 151 99 105 103 . . 9 . . 10 50 105 215 210 . 80 159 Time Decay 5608 | 20 493 233 668 568 640 318 287 . 66 12 . 10 214 206 457 170 420 170 386 270 Lost Part 354 | . . . 10 . 10 10 . . . . . . 10 20 50 30 . 50 44 120 Lost Ally 490 | . . . . . . . . . . . . . . 10 260 80 . 140 . . Purge Threat 660 | . . . 32 . 150 150 . . . . . . . 150 150 . . . 28 . Squads Dispatched 31 | . 3 . 3 . 6 2 . . 5 . . . 1 2 2 . . 3 4 . Investigation 15 | . 1 . 1 . 4 . . . 4 . . . . 1 2 . . 1 1 . Extermination 5 | . . . . . . . . . 1 . . . . 1 . . . . 3 . Reinforcement 10 | . 2 . 2 . 2 2 . . . . . . . . . . . 2 . . Assault 1 | . . . . . . . . . . . . . 1 . . . . . . . Garrison . | . . . . . . . . . . . . . . . . . . . . . Intercept . | . . . . . . . . . . . . . . . . . . . . . Searches Triggered . | . . . . . . . . . . . . . . . . . . . . . Construction Impeded . | . . . . . . . . . . . . . . . . . . . . . Haulers Reinforced . | . . . . . . . . . . . . . . . . . . . . . Active Scanning Responses . | . . . . . . . . . . . . . . . . . . . . . Cargo Convoy Interrupts . | . . . . . . . . . . . . . . . . . . . . . Stealth | -11 -10 -10 -9 -9 -8 -8 -8 -8 -6 -6 -6 -6 -5 -5 -5 -5 -5 -5 -4 -4 --------- Run | Yrd Mat Min Mat Min Mat Sto Rec Scr Fac Low Low Dat Pro Fac Ext Cet Arc Hub Fac Upp Distress Signals 16 | . . . 1 . 4 1 . . . . . . . 1 4 2 . 2 1 . Communications Jammed 7 | . . . . . . . . . . . . . . . . . . . 7 . Distress Signals 6 | . . . . . . . . . . . . . . . . . . . 6 . Times Spotted 301 | . 22 7 40 14 42 19 . . 5 . 3 4 17 15 41 10 6 16 31 9 Peak Tracking Total 9 | . 4 3 3 4 5 9 . . 4 . 5 4 9 6 9 5 3 8 4 4 Tactical Retreats 23 | . . 1 3 . 2 . . . 1 . . . 4 1 6 . . 2 3 . Traps | -11 -10 -10 -9 -9 -8 -8 -8 -8 -6 -6 -6 -6 -5 -5 -5 -5 -5 -5 -4 -4 ------- Run | Yrd Mat Min Mat Min Mat Sto Rec Scr Fac Low Low Dat Pro Fac Ext Cet Arc Hub Fac Upp Traps Triggered 14 | . 2 . 7 . 3 . . . . . . . . . 1 . . . 1 . Indirectly . | . . . . . . . . . . . . . . . . . . . . . Trap Hack Attempts . | . . . . . . . . . . . . . . . . . . . . . Triggered . | . . . . . . . . . . . . . . . . . . . . . Disarmed . | . . . . . . . . . . . . . . . . . . . . . Reprogrammed . | . . . . . . . . . . . . . . . . . . . . . Reused . | . . . . . . . . . . . . . . . . . . . . . Traps Extracted . | . . . . . . . . . . . . . . . . . . . . . Installed . | . . . . . . . . . . . . . . . . . . . . . Triggered . | . . . . . . . . . . . . . . . . . . . . . Machines | -11 -10 -10 -9 -9 -8 -8 -8 -8 -6 -6 -6 -6 -5 -5 -5 -5 -5 -5 -4 -4 ---------- Run | Yrd Mat Min Mat Min Mat Sto Rec Scr Fac Low Low Dat Pro Fac Ext Cet Arc Hub Fac Upp Machines Disabled 24 | . 1 1 . 4 . 2 . . . . . 1 . 1 . 1 1 5 7 . Max in Single Turn 5 | . 1 1 . 3 . 1 . . . . . 1 . 1 . 1 . 1 5 . Garrison Access 3 | . . . . . . 1 . . . . . . . 2 . . . . . . Network Hub 2 | . . . . . . . . . . . . . . . . . . 2 . . Machines Repaired . | . . . . . . . . . . . . . . . . . . . . . Machines Dismantled 2 | . . . . . . . . . . . . . . . . 1 . 1 . . Machines Sabotaged 1 | . . . . . . . . . . . . . . . . . . 1 . . Overloaded Fab Kills . | . . . . . . . . . . . . . . . . . . . . . Hacking | -11 -10 -10 -9 -9 -8 -8 -8 -8 -6 -6 -6 -6 -5 -5 -5 -5 -5 -5 -4 -4 --------- Run | Yrd Mat Min Mat Min Mat Sto Rec Scr Fac Low Low Dat Pro Fac Ext Cet Arc Hub Fac Upp Machines Accessed 99 | . 7 . 10 . 8 9 12 6 8 . . 4 . 11 11 1 . 4 8 . Terminals 65 | . 5 . 9 . 7 7 6 . 3 . . . . 6 11 1 . 4 6 . Fabricators 3 | . . . . . . . . . 2 . . . . 1 . . . . . . Repair Stations 4 | . 1 . 1 . . 1 . . . . . . . . . . . . 1 . Recycling Units 11 | . 1 . . . 1 . 6 . 2 . . . . . . . . . 1 . Scanalyzers 2 | . . . . . . . . . . . . . . 2 . . . . . . Garrison Access 4 | . . . . . . 1 . . 1 . . . . 2 . . . . . . Total Hacks 339 | . 25 . 29 . 23 15 27 54 13 . . 32 . 39 30 3 . 22 27 . Successful 210 | . 15 . 16 . 8 12 16 54 8 . . 32 . 21 13 . . 8 7 . Failed 127 | . 10 . 13 . 14 3 10 . 5 . . . . 18 17 3 . 14 20 . Catastrophic 31 | . 1 . . . 5 . 2 . 2 . . . . 3 5 1 . 7 5 . Database Lockouts 2 | . . . . . 1 . 1 . . . . . . . . . . . . . Manual 140 | . 13 . 22 . 16 4 22 . 7 . . . . 17 9 1 . 14 15 . Terminals 199 | . 18 . 25 . 22 11 21 . 6 . . . . 19 30 3 . 22 22 . Fabricators 7 | . . . . . . . . . 3 . . . . 4 . . . . . . Repair Stations 17 | . 6 . 4 . . 3 . . . . . . . . . . . . 4 . Recycling Units 11 | . 1 . . . 1 . 6 . 2 . . . . . . . . . 1 . Scanalyzers 10 | . . . . . . . . . . . . . . 10 . . . . . . Garrison Access 9 | . . . . . . 1 . . 2 . . . . 6 . . . . . . Terminal Hacks 139 | . 4 . 5 . 5 8 5 54 2 . . 32 . 6 12 . . 3 3 . Record 65 | . . . . . . . . 53 . . . 11 . . 1 . . . . . Part Schematic 26 | . 1 . 1 . 2 1 3 . 1 . . 12 . 2 3 . . . . . Robot Schematic 6 | . . . . . . . . . . . . 6 . . . . . . . . Robot Analysis 3 | . . . 1 . . . 2 . . . . . . . . . . . . . Prototype ID Bank 5 | . 1 . . . . 1 . . . . . 3 . . . . . . . . Open Door 13 | . . . . . . 5 . 1 . . . . . 1 6 . . . . . Level Access Points 1 | . . . . . . . . . . . . . . . . . . 1 . . Branch Access Points 1 | . . . . . . . . . . . . . . . . . . . 1 . Terminal Index 1 | . . . . . . . . . . . . . . . . . . 1 . . Repair Station Index 2 | . . . . . . . . . . . . . . . 1 . . 1 . . Unreport Threat 6 | . . . 1 . 1 1 . . . . . . . 1 1 . . . 1 . Locate Traps 3 | . 1 . 1 . . . . . . . . . . 1 . . . . . . Recall Extermination 1 | . . . . . . . . . 1 . . . . . . . . . . . Recall Reinforcements 2 | . . . 1 . 1 . . . . . . . . . . . . . . . Hauler Manifests 3 | . 1 . . . . . . . . . . . . 1 . . . . 1 . Registered Components 1 | . . . . . 1 . . . . . . . . . . . . . . . Fabricator Hacks 4 | . . . . . . . . . 2 . . . . 2 . . . . . . Load Schematic 2 | . . . . . . . . . 1 . . . . 1 . . . . . . Build 2 | . . . . . . . . . 1 . . . . 1 . . . . . . Repair Station Hacks 13 | . 6 . 4 . . 2 . . . . . . . . . . . . 1 . Scan Component 7 | . 3 . 2 . . 1 . . . . . . . . . . . . 1 . Repair 6 | . 3 . 2 . . 1 . . . . . . . . . . . . . . Recycling Unit Hacks . | . . . . . . . . . . . . . . . . . . . . . Scanalyzer 8 | . . . . . . . . . . . . . . 8 . . . . . . Insert Component 3 | . . . . . . . . . . . . . . 3 . . . . . . Analyze 5 | . . . . . . . . . . . . . . 5 . . . . . . Garrison Access Hacks 3 | . . . . . . 1 . . . . . . . 2 . . . . . . Seal Access 3 | . . . . . . 1 . . . . . . . 2 . . . . . . Unauthorized Hacks 43 | . 5 . 7 . 3 1 11 . 4 . . . . 3 1 . . 5 3 . Terminals 30 | . 4 . 7 . 2 1 5 . 1 . . . . 2 1 . . 5 2 . Track 3 | . . . . . . 1 . . . . . . . 1 . . . 1 . . Assimilate 4 | . . . . . . . . . . . . . . 1 1 . . . 2 . Botnet 7 | . . . 2 . 2 . 1 . 1 . . . . . . . . 1 . . Detonate 1 | . . . . . . . . . . . . . . . . . . 1 . . Operators 1 | . . . . . . . . . . . . . . . . . . 1 . . Skim 13 | . 4 . 5 . . . 4 . . . . . . . . . . . . . Sabotage 1 | . . . . . . . . . . . . . . . . . . 1 . . Fabricators 2 | . . . . . . . . . 1 . . . . 1 . . . . . . Prioritize 1 | . . . . . . . . . . . . . . 1 . . . . . . Liberate 1 | . . . . . . . . . 1 . . . . . . . . . . . Repair Stations . | . . . . . . . . . . . . . . . . . . . . . Recycling Units 11 | . 1 . . . 1 . 6 . 2 . . . . . . . . . 1 . Tunnel 8 | . 1 . . . 1 . 6 . . . . . . . . . . . . . Fedlink 3 | . . . . . . . . . 2 . . . . . . . . . 1 . Scanalyzers . | . . . . . . . . . . . . . . . . . . . . . Garrison Access . | . . . . . . . . . . . . . . . . . . . . . Data Cores Recovered 1 | . . . . . . . . . . . . . . . 1 . . . . . Used 1 | . . . . . . . . . . . . . . . 1 . . . . . Hacking Detections 64 | . 5 . 10 . 7 5 6 . 6 . . . . 7 7 1 . 3 7 . Full Trace Events 9 | . . . 1 . 1 . 3 . 2 . . . . 1 1 . . . . . Feedback Events . | . . . . . . . . . . . . . . . . . . . . . Feedback Blocked . | . . . . . . . . . . . . . . . . . . . . . Robot Schematics Acquired 6 | . . . . . . . . . . . . 6 . . . . . . . . Robots Built . | . . . . . . . . . . . . . . . . . . . . . Authchips . | . . . . . . . . . . . . . . . . . . . . . Time . | . . . . . . . . . . . . . . . . . . . . . Total Robot Build Rating . | . . . . . . . . . . . . . . . . . . . . . Part Schematics Acquired 29 | . 1 . 1 . 2 1 3 . 1 . . 12 . 5 3 . . . . . Parts Built 3 | . . . . . . . . . 2 . . . . 1 . . . . . . Authchips . | . . . . . . . . . . . . . . . . . . . . . Time 107 | . . . . . . . . . 31 . . . . 76 . . . . . . Total Part Build Rating 9 | . . . . . . . . . 4 . . . . 5 . . . . . . Parts Repaired 6 | . 3 . 2 . . 1 . . . . . . . . . . . . . . Time 240 | . 90 . 90 . . 60 . . . . . . . . . . . . . . Parts Recycled . | . . . . . . . . . . . . . . . . . . . . . Recycled Matter . | . . . . . . . . . . . . . . . . . . . . . Retrieved Matter . | . . . . . . . . . . . . . . . . . . . . . Retrieved Components . | . . . . . . . . . . . . . . . . . . . . . Parts Scanalyzed 3 | . . . . . . . . . . . . . . 3 . . . . . . Part Schematics Acquired 3 | . . . . . . . . . . . . . . 3 . . . . . . Parts Damaged 1 | . . . . . . . . . . . . . . 1 . . . . . . Bothacking | -11 -10 -10 -9 -9 -8 -8 -8 -8 -6 -6 -6 -6 -5 -5 -5 -5 -5 -5 -4 -4 ------------ Run | Yrd Mat Min Mat Min Mat Sto Rec Scr Fac Low Low Dat Pro Fac Ext Cet Arc Hub Fac Upp Used RIF Installer . | . . . . . . . . . . . . . . . . . . . . . Robots Hacked 1 | . . . . . . . . . 1 . . . . . . . . . . . Non-combat 1 | . . . . . . . . . 1 . . . . . . . . . . . Combat . | . . . . . . . . . . . . . . . . . . . . . Robot Hacks Applied 1 | . . . . . . . . . 1 . . . . . . . . . . . find_chute 1 | . . . . . . . . . 1 . . . . . . . . . . . Relay Couplers Released . | . . . . . . . . . . . . . . . . . . . . . Fabnet Peak Effective % . | . . . . . . . . . . . . . . . . . . . . . Robots Rewired 20 | . . . . . . . . . 1 . . . . . 19 . . . . . Allies Hacked 1 | . . . . . . . . . . . . . . 1 . . . . . . Hacks Repelled . | . . . . . . . . . . . . . . . . . . . . . Allies | -11 -10 -10 -9 -9 -8 -8 -8 -8 -6 -6 -6 -6 -5 -5 -5 -5 -5 -5 -4 -4 -------- Run | Yrd Mat Min Mat Min Mat Sto Rec Scr Fac Low Low Dat Pro Fac Ext Cet Arc Hub Fac Upp Total Allies 33 | . . . . . . . . . 1 . . . . 1 26 5 . . . . Largest Group 17 | . . . . . . . . . 1 . . . . 1 17 12 9 7 . . Highest-Rated Group 703 | . . . . . . . . . 20 . . . . 26 570 703 699 531 . . Highest-Rated Ally 159 | . . . . . . . . . 20 . . . . 26 159 159 152 96 . . Total Orders . | . . . . . . . . . . . . . . . . . . . . . Ally Attacks 264 | . . . . . . . . . . . . . . . 100 69 39 56 . . Total Damage 7853 | . . . . . . . . . . . . . . . 2508 2362 1577 1406 . . Kills 42 | . . . . . . . . . . . . . . . 20 12 4 6 . . Allies Corrupted 4 | . . . . . . . . . . . . . . . . . . 4 . . Allies Melted 2 | . . . . . . . . . . . . . . . 1 . . 1 . . Intel | -11 -10 -10 -9 -9 -8 -8 -8 -8 -6 -6 -6 -6 -5 -5 -5 -5 -5 -5 -4 -4 ------- Run | Yrd Mat Min Mat Min Mat Sto Rec Scr Fac Low Low Dat Pro Fac Ext Cet Arc Hub Fac Upp Active Infowar (turns) 6201 | 1 330 . 283 . 135 . . . 256 234 126 32 422 419 59 . 1827 340 1143 594 Sensors 1100 | . . . . . . . . . . . . . . . . . . . 580 520 Structural 1044 | . . . . . . . . . . 165 120 30 114 154 . . . . 461 . Seismic 4653 | 1 330 . 283 . 135 . . . 256 181 126 32 415 309 59 . 1827 340 359 . Jamming 1577 | . . . . . . . . . . . . . . . . . . . 983 594 Robot Analysis Total 3 | . . . 1 . . . 2 . . . . . . . . . . . . . Derelict Logs Recovered 5 | . . 1 . 2 . . . . . 1 . . 1 . . . . . . . Drone Launches . | . . . . . . . . . . . . . . . . . . . . . Drone Recoveries . | . . . . . . . . . . . . . . . . . . . . . Exploration | -11 -10 -10 -9 -9 -8 -8 -8 -8 -6 -6 -6 -6 -5 -5 -5 -5 -5 -5 -4 -4 ------------- Run | Yrd Mat Min Mat Min Mat Sto Rec Scr Fac Low Low Dat Pro Fac Ext Cet Arc Hub Fac Upp Turns Passed 23720 | 116 3810 1000 3723 1718 2290 705 721 2348 273 234 126 79 449 430 1178 343 2100 340 1143 594 Spaces Moved 13674 | 47 1110 289 1236 656 969 361 588 2017 729 718 380 139 456 834 1294 202 343 230 735 341 Core 159 | 1 . . . . . . . . . . . . . . . . 158 . . . Treads 3892 | 46 1110 289 1236 656 554 . . . . . . . . . . . . . 1 . Legs 2171 | . . . . . . . . . . . . . . . 479 202 185 230 734 341 Wheels 3381 | . . . . . 415 361 588 2017 . . . . . . . . . . . . Hover 2 | . . . . . . . . . . . . . . . 2 . . . . . Flight 4069 | . . . . . . . . . 729 718 380 139 456 834 813 . . . . . Fastest Speed 20 | 50 160 320 240 250 100 115 115 115 20 24 24 20 20 20 24 120 120 115 113 110 Average Speed 143 | 157 304 320 244 250 187 115 115 115 24 24 24 22 22 20 61 120 585 119 113 114 Slowest Speed 1100 | 160 480 320 330 250 250 130 115 115 94 94 24 24 24 24 240 120 1100 190 320 190 Overloaded Moves . | . . . . . . . . . . . . . . . . . . . . . Propulsion Burnouts . | . . . . . . . . . . . . . . . . . . . . . Robots Hopped 18 | . . . . . . . . . 5 . . 2 . 2 9 . . . . . Potential Cave-ins . | . . . . . . . . . . . . . . . . . . . . . Cave-ins Triggered . | . . . . . . . . . . . . . . . . . . . . . Exploration Rate (%) 58 | 4 99 29 88 101 65 56 96 93 16 67 47 76 48 23 90 67 80 23 25 36 Regions Visited 20 Branch Regions 14 Pre-discovered Areas 17 | . 1 1 1 . 1 . 6 5 1 . . 1 . . . . . . . . Known Exits Taken 7 | . . . . 1 1 1 . 1 . . . . 1 . . . . 1 1 . Unknown Exits Taken 13 | 1 1 1 1 . . . 1 . 1 1 1 1 . 1 1 1 1 . . . Scrap Searched 18 | . . . . 2 . . . 9 . 2 2 . 3 . . . . . . . Spaces Dug 314 | . 14 21 15 25 . 68 . . 13 1 3 5 75 43 . . . 4 27 . Terrain Destroyed 554 | . 15 26 23 84 38 77 . . 13 1 3 5 103 43 . . . 4 96 23 Melee 97 | . . . . . . . . . 13 1 3 5 9 43 . . . 4 19 . Projectile 41 | . 3 . 8 . 15 . . . . . . . 14 . . . . . 1 . AOE 416 | . 12 26 15 84 23 77 . . . . . . 80 . . . . . 76 23 Terrain Rammed . | . . . . . . . . . . . . . . . . . . . . . Walls Destroyed . | . . . . . . . . . . . . . . . . . . . . . Machines Disabled . | . . . . . . . . . . . . . . . . . . . . . Actions | -11 -10 -10 -9 -9 -8 -8 -8 -8 -6 -6 -6 -6 -5 -5 -5 -5 -5 -5 -4 -4 --------- Run | Yrd Mat Min Mat Min Mat Sto Rec Scr Fac Low Low Dat Pro Fac Ext Cet Arc Hub Fac Upp Total 16619 | 68 1397 341 1738 695 1295 587 631 2050 794 774 410 173 740 1001 1594 279 420 267 906 459 Wait 1335 | . 135 38 249 2 144 111 1 3 21 47 24 21 212 71 82 32 51 6 39 46 Move 13620 | 46 1109 288 1235 655 968 360 587 2016 718 717 379 134 455 829 1277 201 342 229 734 341 Hop 16 | . . . . . . . . . 5 . . 2 . 2 7 . . . . . Pick Up 186 | 6 34 . 33 1 30 18 17 12 4 1 1 2 1 8 5 3 4 1 4 1 Fast Attach 85 | 6 5 . 23 . 5 5 . 2 1 . . . 1 2 14 4 2 5 7 3 Attach 48 | 1 . . 5 . 3 5 1 2 9 . . . 1 5 . 2 . 1 10 3 Detach 20 | . . . . . . 2 . 1 2 . . . . 3 1 2 1 1 5 2 Swap 157 | . 18 2 24 9 17 10 1 2 5 7 2 2 15 11 16 3 2 2 9 . Drop 223 | . 19 . 55 1 40 20 17 12 7 1 1 2 1 9 20 8 5 3 2 . Fire 395 | 9 66 12 99 22 83 56 2 . . . . . 35 . . . . . 7 4 Melee 385 | . . . . . . . 5 . 22 1 3 10 19 61 74 16 13 16 86 59 Ram . | . . . . . . . . . . . . . . . . . . . . . Kick 1 | . . . . . . . . . . . . . . . . . . . 1 . Crush 37 | . 11 1 15 5 5 . . . . . . . . . . . . . . . Escape Stasis 18 | . . . . . . . . . . . . . . . 18 . . . . . Rewire 82 | . . . . . . . . . . . . . . . 80 . . . 2 . Trap . | . . . . . . . . . . . . . . . . . . . . . Miscellaneous 11 | . . . . . . . . . . . . . . . . 8 . 3 . . Route ------- -11/Scrapyard -10/Materials (discovered 6 exits: *Mat x3 / [*Min x2] / [*Sub]) -10/Mines -9/Materials (discovered 5 exits: *Mat x3 / [*Min x2]) -9/Mines (discovered 3 exits: *Mat x2 / [*Zio]) -8/Materials (discovered 4 exits: *Fac x3 / *Sto) -8/Storage (discovered 2 exits: Fac / *Rec) -8/Recycling (discovered 2 exits: *Fac / *Scr) -8/Scraptown (discovered 2 exits: *Fac x2) -6/Factory (discovered 3 exits: Fac x2 / [*Low]) -6/Lower Caves -6/Lower Caves -6/Data Miner -5/Proximity Caves -5/Factory (discovered 3 exits: *Fac / *Upp / *Ext) -5/Extension (discovered 2 exits: *Fac / *Cet) -5/Cetus (discovered 2 exits: *Fac / [*Arc]) -5/Archives (discovered 3 exits: *Fac / *Hub x2) -5/Hub_04(d) (discovered 4 exits: *Fac x4) -4/Factory (discovered 3 exits: *Upp x2 / Arm) -4/Upper Caves (discovered 1 exit: Upp) History --------- Turn | Location | Event 26 | -11/Scrapyard | Discovered new exit (range 15) 117 | -11/Scrapyard | Entered Materials 118 | -10/Materials | Met a group of wandering Federalists 187 | -10/Materials | Discovered new exit (range 16) 328 | -10/Materials | Build established: Mutant 646 | -10/Materials | Discovered new exit (range 9) 1191 | -10/Materials | Discovered new exit (range 14) 1755 | -10/Materials | Repaired Lgt. Treads 1782 | -10/Materials | Repaired Lgt. Treads 1820 | -10/Materials | Repaired Imp. Heat Sink 2474 | -10/Materials | Discovered new exit (range 10) 2549 | -10/Materials | Discovered new exit (range 13) 3497 | -10/Materials | Discovered new exit (range 10) 3927 | -10/Materials | Entered Mines 4005 | -10/Mines | Core integrity fell below 50% 4025 | -10/Mines | Discovered new exit (range 6) 4218 | -10/Mines | Assembled infested the area 4927 | -10/Mines | Entered Materials 4927 | -9/Materials | Evolved 2 slots: Propulsion x1, Utility x1 5005 | -9/Materials | Discovered new exit (range 15) 5889 | -9/Materials | Discovered new exit (range 16) 6061 | -9/Materials | Repaired Broken Adv. Beam Cannon 6969 | -9/Materials | Discovered new exit (range 10) 7122 | -9/Materials | Learned Storage security intel 7178 | -9/Materials | Learned 2 Storage zone layouts 7222 | -9/Materials | Identified exit to Materials 7306 | -9/Materials | Repaired Lgt. Armor Plating 7309 | -9/Materials | Learned location of 1 exit from Storage 7353 | -9/Materials | Learned location of 2 exits from Materials 8650 | -9/Materials | Entered Mines 9137 | -9/Mines | Discovered exit to Materials (range 15) 9528 | -9/Mines | Discovered exit to Materials (range 13) 9656 | -9/Mines | A Derelict revealed a hidden shortcut to a safe place 10368 | -9/Mines | Entered Materials 10368 | -8/Materials | Evolved 2 slots: Propulsion x1, Utility x1 10369 | -8/Materials | Identified exit to Factory 10369 | -8/Materials | Identified exit to Storage 12240 | -8/Materials | Central database locked down 12658 | -8/Materials | Entered Storage 12660 | -8/Storage | Identified exit to Recycling 12857 | -8/Storage | Destroyed 9 combat bots 13180 | -8/Storage | Repaired Enh. Autogun 13363 | -8/Storage | Entered Recycling 13706 | -8/Recycling | Scanned before Scraplab entrance 13832 | -8/Recycling | Discovered new exit (range 11) 14025 | -8/Recycling | Entered Scraplab 14045 | -8/Recycling | Found SUBCON Basin 14083 | -8/Recycling | Discovered new exit (range 2) 14084 | -8/Recycling | Entered Scraptown 14327 | -8/Scraptown | Discovered new exit (range 5) 14424 | -8/Scraptown | Visited Spacefarers 14477 | -8/Scraptown | Visited Bundlers 14563 | -8/Scraptown | Visited Cyclists 14653 | -8/Scraptown | Visited CPS Storage 14677 | -8/Scraptown | Visited Junk Repository 14890 | -8/Scraptown | Visited Cave Peace 14933 | -8/Scraptown | Visited IN-MT5's Study 14975 | -8/Scraptown | Visited UFD Registry 14975 | -8/Scraptown | Registered with UFD as "Spikeslider" 15016 | -8/Scraptown | Visited Cartography Club 15037 | -8/Scraptown | Found Surveybot 17 Chip 15081 | -8/Scraptown | Found Deep Structural Scanner 15092 | -8/Scraptown | Learned location of Proximity Caves (-5) 15092 | -8/Scraptown | Learned location of Warlord (-5) 15092 | -8/Scraptown | Learned location of Testing (-3) 15092 | -8/Scraptown | Learned location of Quarantine (-2) 15092 | -8/Scraptown | Learned 16 Materials zone layouts 15092 | -8/Scraptown | Learned 20 Factory zone layouts 15092 | -8/Scraptown | Learned 8 Access zone layouts 15092 | -8/Scraptown | Learned 4 Storage zone layouts 15092 | -8/Scraptown | Learned 8 Lower Caves zone layouts 15092 | -8/Scraptown | Learned 12 Upper Caves zone layouts 15092 | -8/Scraptown | Learned 24 Upper Caves zone layouts 15092 | -8/Scraptown | Learned 4 Hub_04(d) zone layouts 15092 | -8/Scraptown | Learned 8 Proximity Caves zone layouts 15092 | -8/Scraptown | Learned location of 2 exits from Research 15092 | -8/Scraptown | Learned location of 1 exit from Proximity Caves 15092 | -8/Scraptown | Identified exit to Factory 15136 | -8/Scraptown | Visited LU-1G1's Boring Crew 15207 | -8/Scraptown | Visited Infowarlord's Domain 15226 | -8/Scraptown | Visited Modified Component R&D 15248 | -8/Scraptown | Visited A0-MCA Data Center 15254 | -8/Scraptown | Given an A rating by A0-MCA 15257 | -8/Scraptown | Found A0-MCA's Component Scanner 15281 | -8/Scraptown | Visited Scrap Suit Storage 15314 | -8/Scraptown | Visited Research Penetration Think Tank 15340 | -8/Scraptown | Visited Curators Association 15382 | -8/Scraptown | Visited Sword Containment 15745 | -8/Scraptown | Entered Cyclist Reading Room 16134 | -8/Scraptown | Found Exp. Terrain Scanner 16368 | -8/Scraptown | Met Optimus 16368 | -8/Scraptown | Accepted into 0bPrime 16432 | -8/Scraptown | Entered Factory 16432 | -6/Factory | Evolved 4 slots: Propulsion x2, Utility x2 16433 | -6/Factory | Identified exit to Factory 16466 | -6/Factory | Discovered new exit (range 5) 16473 | -6/Factory | Loaded intel: 8 recycling unit locations 16491 | -6/Factory | Learned location of Protoforge (-2) 16547 | -6/Factory | Fabricated Plasma Cutter? 16705 | -6/Factory | Entered Lower Caves 16726 | -6/Lower Caves | Build established: Sprinter 16823 | -6/Lower Caves | Discovered new exit (range 17) 16895 | -6/Lower Caves | Learned Factory garrison access intel 16939 | -6/Lower Caves | Entered another Lower Caves area 17014 | -6/Lower Caves | Discovered new exit (range 8) 17065 | -6/Lower Caves | Entered Data Miner 17065 | -6/Data Miner | Discovered new exit (range 6) 17070 | -6/Data Miner | Met Data Miner 17075 | -6/Data Miner | Learned location of Section 7 (-2) 17075 | -6/Data Miner | Acquired the access code to Warlord's prototype stash 17079 | -6/Data Miner | Received God Mode back door access code from Data Miner 17118 | -6/Data Miner | Destroyed Data Miner 17119 | -6/Data Miner | Found Prototype Hackware 17121 | -6/Data Miner | Data Conduit disabled 17144 | -6/Data Miner | Entered Proximity Caves 17151 | -5/Proximity Caves | Spotter reported a threat 17316 | -5/Proximity Caves | Attracted the attention of an 0b10 outpost 17336 | -5/Proximity Caves | Learned 8 Factory zone layouts 17574 | -5/Proximity Caves | Build established: Scavenger-Sprinter 17589 | -5/Proximity Caves | Attracted the attention of an 0b10 checkpoint 17593 | -5/Proximity Caves | Entered Factory 17593 | -5/Factory | Evolved 2 slots: Power x1, Utility x1 17595 | -5/Factory | Loaded intel: 4 garrison access locations 17600 | -5/Factory | Identified Quantum Router 17603 | -5/Factory | Discovered new exit (range 12) 17664 | -5/Factory | Identified exit to Upper Caves 17894 | -5/Factory | Fabricated Cld. Cesium-ion Thruster? 17921 | -5/Factory | Discovered new exit (range 10) 17928 | -5/Factory | Build established: Hacker-Sprinter 17969 | -5/Factory | Discovered new exit (range 6) 18023 | -5/Factory | Entered Extension 18061 | -5/Extension | Rescued a captive Derelict 18192 | -5/Extension | Rescued A7 18217 | -5/Extension | Rescued a captive Derelict 18317 | -5/Extension | Spotted B-75 Beast 18375 | -5/Extension | Spotted B-75 Beast 18618 | -5/Extension | Rescued a captive Derelict 18619 | -5/Extension | Rescued a captive Derelict 18696 | -5/Extension | Rescued a captive Derelict 18701 | -5/Extension | Build established: Hacker-Mutant 18884 | -5/Extension | Rescued a captive Derelict 18905 | -5/Extension | Discovered new exit (range 10) 18906 | -5/Extension | Discovered new exit (range 6) 19123 | -5/Extension | Disrupted transfer network 19183 | -5/Extension | Lost 5 allies 19201 | -5/Extension | Entered Cetus 19201 | -5/Cetus | Accompanied by 12 allies (A7) 19206 | -5/Cetus | Acquired a Cetus Manufacturing Module code from A7 19218 | -5/Cetus | Spotted Cetus Guard 19219 | -5/Cetus | Spotted Cetus Guard 19223 | -5/Cetus | Spotted Cetus Guard 19224 | -5/Cetus | Spotted Cetus Guard 19241 | -5/Cetus | Allies destroyed Cetus Guard 19247 | -5/Cetus | Destroyed Cetus Guard 19249 | -5/Cetus | Allies destroyed Cetus Guard 19252 | -5/Cetus | Destroyed Cetus Guard 19272 | -5/Cetus | Lost 4 allies 19306 | -5/Cetus | Started Cetus Manufacturing Module 19331 | -5/Cetus | Manufactured an Enhanced Grunt 19332 | -5/Cetus | Escorted A7 to Cetus Mainframe 19349 | -5/Cetus | Discovered new exit (range 15) 19356 | -5/Cetus | Manufactured an Enhanced Grunt 19381 | -5/Cetus | Manufactured an Enhanced Grunt 19399 | -5/Cetus | Spotted Cetus Guard 19399 | -5/Cetus | Spotted Cetus Guard 19401 | -5/Cetus | Spotted Cetus Guard 19403 | -5/Cetus | Spotted Cetus Guard 19406 | -5/Cetus | Manufactured an Enhanced Grunt 19407 | -5/Cetus | Discovered new exit (range 15) 19408 | -5/Cetus | Build established: Scavenger-Mutant 19412 | -5/Cetus | Allies destroyed Cetus Guard 19431 | -5/Cetus | Manufactured an Enhanced Grunt 19431 | -5/Cetus | Allies destroyed Cetus Guard 19432 | -5/Cetus | Allies destroyed Cetus Guard 19433 | -5/Cetus | Allies destroyed Cetus Guard 19435 | -5/Cetus | Met Revision 17 19463 | -5/Cetus | Lost 3 parts (2p1u) 19465 | -5/Cetus | Lost 4 allies 19544 | -5/Cetus | Entered Archives 19544 | -5/Archives | Accompanied by 9 allies (A7) 19549 | -5/Archives | Received a hacking code to weaken MAIN.C 19576 | -5/Archives | Discovered new exit (range 14) 19587 | -5/Archives | Discovered new exit (range 14) 19684 | -5/Archives | Discovered new exit (range 15) 21644 | -5/Archives | Entered Hub_04(d) 21644 | -5/Hub_04(d) | Accompanied by 7 allies 21645 | -5/Hub_04(d) | Identified exit to Factory 21663 | -5/Hub_04(d) | Network Hub disabled 21753 | -5/Hub_04(d) | Core integrity fell below 50% 21759 | -5/Hub_04(d) | Spotted Lightning 21760 | -5/Hub_04(d) | Spotted Lightning 21781 | -5/Hub_04(d) | Allies destroyed Lightning 21791 | -5/Hub_04(d) | Found Prototype Device 21791 | -5/Hub_04(d) | Identified Exp. Phase Shifter 21792 | -5/Hub_04(d) | Allies destroyed Lightning 21804 | -5/Hub_04(d) | System corruption reached 10% 21810 | -5/Hub_04(d) | Lost 3 parts (2n1u) 21819 | -5/Hub_04(d) | Lost 3 allies 21839 | -5/Hub_04(d) | Network Hub disabled 21978 | -5/Hub_04(d) | Spotted Lightning 21984 | -5/Hub_04(d) | Entered Factory 21984 | -4/Factory | Evolved 2 slots: Utility x2 21985 | -4/Factory | Identified exit to Armory 22181 | -4/Factory | Found Quantum Capacitor 22240 | -4/Factory | Loaded intel: 8 recycling unit locations 22907 | -4/Factory | Identified exit to Upper Caves 22946 | -4/Factory | Build established: Scavenger-Assassin 23127 | -4/Factory | Entered Upper Caves 23128 | -4/Upper Caves | Identified exit to Upper Caves 23300 | -4/Upper Caves | Build established: Scavenger-Mutant 23678 | -4/Upper Caves | Lost 3 parts (2n1u) 23721 | -4/Upper Caves | Self-destructed Last Messages --------------- 23684_ Enh. Flexi-carbon Leg destroyed. 23684_ Centrium Medium Armor Plating destroyed. 23685_ Adv. Heat Sink fries itself beyond repair. 23687_ Enh. Biometal Leg destroyed. 23688_ Myomer Leg destroyed. 23688_ Critical hit (Burn: +50). 23690_ G-67 Veteran destroyed. 23695_ Acquired Flexi-carbon Leg. 23697_ Adv. Heat Sink fries itself beyond repair. 23702_ System corrupted: Energy discharge (-46). 23702_ Lgt. Antimatter Reactor destroyed. 23706_ Lgt. Antimatter Reactor fries itself beyond repair. 23707_ Adv. Heat Sink fries itself beyond repair. 23708_ Plasma Rifle fries itself beyond repair. 23714_ Mic. Fission Core destroyed. 23718_ G-67 Veteran destroyed. Map ----- +----------------------------------------------------+ | ?????????????????????????????????????????????????? | | ?????????????????????????????????????????????????? | | ?????????????????????????????????????????????????? | | ??????????????????????????????###????????????????? | | ?????????#################???## ##?????????????### | | ?????????# #??## #?????????????# | | ?????????# #?## ##????????????# | | ?????????# ## # ##### ### #????????##### | | ?????????# #" " """# ## ##???##### ## | | ?????????# #" """# ##### | | ?????????# T """# """ | | ?????????# """# # """""" | | ?????????# " # # """ """ ##### ## # | | ?????????# #" "# # """ ##???# ###### | | ?????????# # "# """ """ #????# #??## | | ?????????# #" # """""" ###### #??# = | | ?????????# #" # # """ # #??# % | | ?????????# ## #+##### # ## ######??# | | ?????????# $ ##### ###### #???????## | | ?????????# ### #????# #???????## | | ?????????########### ## ###### #???????# | | ???????????????????# ## #???????# | | ????????????????##### ## #???????## | | ???????????????## ##### ## "" " " #####????# | | ???????????????# #####%## "" " ###### | | ???????????????# %@ "" "" | | ???????????????# %! " ## | | ???????????????# ###### """" ### "" | | ???????????????## """"" #?### """" | | ????????????????# "" ##### """ | | ????????????????## ### " | | ?????????????????### #?## ### #### " | | ???????????????????## #??# ####?####??# """" | | ????????????????????## ##### ############ " | | ????????????????????####### ## | | ????????????????????# #### ######### ######### | | ???????????????????## ## ##???????# #???????# | | ??????????????????## #????????# #####???? | | ??????????????????# ##???????# #???? | | ??????????????????# ##??????##### #???? | | ??####????????????# #??????????# #?### | | ### ##???????????# ## #??????????# ### | | ###?????????####### ###???????## | | ##?????########## #####??## | | ##????# #### | | ##???# | | ##??# ######### ## | | #??# #???????## #### ### | | #??# #????????## ##??###### #?? | | ##??# ####??????## ######????###?? | +----------------------------------------------------+ Best States ------------- Heat Dissipation 69 Energy Generation 39 Energy Capacity 565 Matter Stores 300 Matter Capacity 300 Sight Range 16 Robot Scan Range 16 Terrain Scan Density 10 Jamming Range 16 Additional Mass Support 9 Armor Coverage 600 Melee Speed Boost 20 Phase Shifting 20 Evasion (%) 90 Targeting Accuracy 8 Melee Accuracy 10 Core Analysis 6 Recoil Reduction 4 Offensive Hacking 26 Defensive Hacking 25 Authchip Count 1 Item Schematics ----------------- Hcp. Storage Unit | -10/Materials | Hacked Plasma Cutter | -9/Materials | Hacked Huge Storage Unit | -8/Materials | Hacked Cargo Storage Unit | -8/Materials | Hacked Imp. Utility Shielding | -8/Storage | Hacked Imp. Weapon Shielding | -8/Recycling | Hacked Hacking Suite | -8/Recycling | Hacked Adv. Weight Redist. System | -8/Recycling | Hacked Adv. Transmission Jammer | -6/Factory | Hacked Combat Drone Bay | -6/Data Miner | Free Lgt. Regenerative Plating | -6/Data Miner | Free Enh. Flexi-carbon Leg | -6/Data Miner | Free Prc. Energy Filter | -6/Data Miner | Free Enh. Coil Gun | -6/Data Miner | Free Myomer Leg | -6/Data Miner | Free Imp. Force Field | -6/Data Miner | Free Dual-blade Saw | -6/Data Miner | Free Imp. Dynamic Insulation System | -6/Data Miner | Free Adv. Target Analyzer | -6/Data Miner | Free Imp. Linear Gravjet | -6/Data Miner | Free Lgt. Particle Reactor | -6/Data Miner | Free Imp. Weapon Cycler | -5/Factory | Scanalyzed Imp. Light Armor Plating | -5/Factory | Scanalyzed Lgt. Nuclear Core | -5/Factory | Scanalyzed Cld. Cesium-ion Thruster | -5/Factory | Hacked Nuclear Pulse Array | -5/Factory | Hacked Med. Armored Exoskeleton | -5/Extension | Hacked Adv. Melee Analysis Suite | -5/Extension | Hacked Exp. Weapon Shielding | -5/Extension | Hacked Robot Schematics ------------------ Y-54 Guardian | -6/Data Miner | Free A-15 Conveyor | -6/Data Miner | Free B-48 Gladiator | -6/Data Miner | Free H-66 Slayer | -6/Data Miner | Free R-10 Processor | -6/Data Miner | Free B-60 Warrior | -6/Data Miner | Free Fabricated ------------ Plasma Cutter | x2 | -6/Factory Cld. Cesium-ion Thruster | x1 | -5/Factory Repaired ---------- Lgt. Treads | 78% | -10/Materials Lgt. Treads | 81% | -10/Materials Imp. Heat Sink | 55% | -10/Materials Adv. Beam Cannon | 99% | -9/Materials | Broken Lgt. Armor Plating | 2% | -9/Materials Enh. Autogun | 34% | -8/Storage Alien Tech Used ----------------- None Achievements -------------- Ambidextrous Challenges ------------ None Game ------ Seed MetaTargetThrower Manual? 0 Play Time 03:56:10 Cumulative 197.7 hours Start 2025.05.13 @ 21:39:48 End 2025.05.14 @ 02:11:43 Sessions 1 Manual Loads 0 Difficulty Rogue Special Mode None Game No. 105 Rogue 105 Adventurer 0 Explorer 0 Win Type - Total 7 Types 3/0/3/1/0/0/0/0/0/0 Lore% 59 Gallery% 73 Achievement% 61 Wizard Run 0 Options --------- Layout 2 ASCII 0 Keyboard 0 Movement Numpad Keybinds 0 Fullscreen 2 Font 32/Tamsyn Map View 50x44 Zoom Use 0% Tactical HUD 1 Map Filters NONE Filters NONE Steam 1 RUN: 2d96cecb-53c8-44f6-9852-fbe87ee63d74